fUST/lending_fUST_20250505
["ID","MTS","AMOUNT","RATE_DAILY","PERIOD"]
[359932467,1746431463405,-400.0,0.00037808,14]
[359932468,1746431463415,-520.25,0.00037808,14]
[359932469,1746431463425,-1424.37,0.00037808,14]
[359932470,1746431463437,-400.0,0.00037808,14]
[359932471,1746431463446,-514.9,0.00037808,14]
[359932472,1746431463456,-2867.55,0.00037808,14]
[359932473,1746431463466,-471.11,0.00037808,14]
[359932474,1746431463476,-400.0,0.00037808,14]
[359932475,1746431463486,-727.17,0.00037808,14]
[359932476,1746431463496,-2092.45,0.00037808,14]
[359932477,1746431463506,-1835.12,0.00037808,14]
[359932478,1746431463516,-400.0,0.00037808,14]
[359932479,1746431463527,-3261.67,0.00037808,14]
[359932480,1746431463537,-1081.5,0.00037808,14]
[359932481,1746431463547,-6831.86,0.00037808,14]
[359932482,1746431463557,-400.0,0.00037808,14]
[359932483,1746431463567,-551.86,0.00037808,14]
[359932484,1746431463577,-423.41,0.00037808,14]
[359932485,1746431463587,-5354.805601,0.00037808,2]
[359932486,1746431463598,-400.0,0.00037808,14]
[359932487,1746431463608,-760.49,0.00037808,14]
[359932488,1746431463617,-5354.805601,0.00037808,2]
[359932489,1746431463627,-3084.1,0.00037808,14]
[359932490,1746431463638,-3375.42,0.00037808,14]
[359932491,1746431463647,-537.19,0.00037808,14]
[359932492,1746431463657,-400.0,0.00037808,14]
[359932493,1746431463666,-400.0,0.00037808,14]
[359932494,1746431463676,-582.03,0.00037808,14]
[359932495,1746431463685,-561.7,0.00037808,14]
[359932496,1746431463695,-2861.16,0.00037808,14]
[359932497,1746431463705,-151.0,0.00037808,14]
[359932498,1746431463714,-960.8,0.00037808,14]
[359932499,1746431463724,-196.636857,0.00037808,14]
[359932500,1746431463734,-1245.99,0.00037808,14]
[359932501,1746431463743,-400.0,0.00037808,14]
[359932502,1746431463754,-917.15,0.00037808,14]
[359932503,1746431463764,-798.63,0.00037808,14]
[359932504,1746431463774,-2164.37,0.00037808,14]
[359932505,1746431463783,-160.0,0.00038,7]
[359932506,1746431463793,-13720.89753353,0.00038,30]
[359932507,1746431463803,-11428.89,0.00038,30]
[359932508,1746431463813,-168.214865,0.00038,14]
[359932509,1746431463823,-168.214865,0.00038,14]
[359932510,1746431463832,-151.0,0.00038,14]
[359932511,1746431463842,-708.598573,0.00038,14]
[359932512,1746431463851,-708.598573,0.00038,14]
[359932513,1746431463861,-151.0,0.00038,14]
[359932514,1746431463871,-325.0956452,0.00038,30]
[359932515,1746431463881,-1171.7319498,0.00038,30]
[359932516,1746431463890,-761.26755606,0.00038068,5]
[359932517,1746431463900,-449.91,0.00038082,14]
[359932518,1746431463910,-400.0,0.00038082,14]
[359932519,1746431463920,-400.0,0.00038082,14]
[359932520,1746431463929,-400.0,0.00038082,14]
[359932521,1746431463941,-400.0,0.00038082,14]
[359932522,1746431463951,-400.0,0.00038082,14]
[359932523,1746431463960,-198.089713,0.00038082,2]
[359932524,1746431464076,-151.0,0.00038082,14]
[359932525,1746431464087,-198.089713,0.00038082,2]
[359932526,1746431464097,-151.0,0.00038082,14]
[359932527,1746431464108,-620.35,0.00038082,14]
[359932528,1746431464118,-1058.09,0.00038082,14]
[359932529,1746431464127,-400.0,0.00038082,14]
[359932530,1746431464138,-413.91,0.00038082,14]
[359932531,1746431464147,-224.275852,0.00038082,14]
[359932532,1746431464158,-224.275852,0.00038082,14]
[359932533,1746431464167,-400.0,0.00038082,14]
[359932534,1746431464177,-400.0,0.00038082,14]
[359932535,1746431464187,-223.41374859,0.00038082,14]
[359932536,1746431464197,-265.47,0.00038082,14]
[359932537,1746431464207,-919.39,0.00038082,14]
[359932538,1746431464216,-400.0,0.00038082,14]
[359932539,1746431464226,-430.77,0.00038082,14]
[359932540,1746431464236,-567.54,0.00038082,14]
[359932541,1746431464246,-1065.94,0.00038082,2]
[359932542,1746431464256,-400.0,0.00038082,14]
[359932543,1746431464266,-1390.66,0.00038082,14]
[359932544,1746431464276,-400.0,0.00038082,14]
[359932545,1746431464286,-400.0,0.00038082,14]
[359932546,1746431464295,-418.95,0.00038082,14]
[359932547,1746431464305,-689.44,0.00038082,14]
[359932548,1746431464315,-400.0,0.00038082,14]
[359932549,1746431464324,-400.0,0.00038082,14]
[359932550,1746431464334,-403.91,0.00038082,14]
[359932551,1746431464344,-400.0,0.00038082,14]
[359932552,1746431464355,-2422.87,0.00038082,14]
[359932553,1746431464367,-593.8,0.00038082,14]
[359932554,1746431464376,-400.0,0.00038082,14]
[359932555,1746431464386,-400.0,0.00038082,14]
[359932556,1746431464398,-874.22,0.00038082,14]
[359932557,1746431464408,-400.0,0.00038082,14]
[359932558,1746431464418,-467.43,0.00038082,14]
[359932559,1746431464427,-151.0,0.00038082,14]
[359932560,1746431464437,-478.31,0.00038082,14]
[359932561,1746431464447,-400.0,0.00038082,14]
[359932562,1746431464457,-400.0,0.00038082,14]
[359932563,1746431464466,-444.04,0.00038082,14]
[359932564,1746431464475,-400.0,0.00038082,14]
[359932565,1746431464485,-518.59,0.00038082,14]
[359932566,1746431464494,-400.0,0.00038082,14]
[359932567,1746431464503,-1222.27,0.00038082,14]
[359932568,1746431464513,-400.0,0.00038082,14]
[359932569,1746431464523,-1484.31,0.00038082,14]
[359932570,1746431464532,-1181.94,0.00038082,14]
[359932571,1746431464539,-400.0,0.00038082,14]
[359932572,1746431464548,-400.0,0.00038082,14]
[359932573,1746431464557,-151.0,0.00038082,14]
[359932574,1746431464568,-273.73169,0.00038082,14]
[359932575,1746431464578,-2007.85,0.00038082,14]
[359932576,1746431464588,-400.0,0.00038082,14]
[359932577,1746431464598,-524.96,0.00038082,14]
[359932578,1746431464608,-676.94,0.00038082,14]
[359932579,1746431464618,-819.404056,0.00038082,14]
[359932580,1746431464627,-594.21,0.00038082,14]
[359932581,1746431464637,-819.404056,0.00038082,14]
[359932582,1746431464647,-5636.69,0.00038082,14]
[359932583,1746431464656,-400.0,0.00038082,14]
[359932584,1746431464667,-577.87,0.00038082,14]
[359932585,1746431464676,-253.131864,0.00038082,14]
[359932586,1746431464685,-2214.19,0.00038082,14]
[359932587,1746431464696,-253.131864,0.00038082,14]
[359932588,1746431464706,-439.27,0.00038082,14]
[359932589,1746431464716,-400.0,0.00038082,14]
[359932590,1746431464726,-601.23,0.00038082,14]
[359932591,1746431464735,-400.0,0.00038082,14]
[359932592,1746431464745,-400.0,0.00038082,14]
[359932593,1746431464754,-400.0,0.00038082,14]
[359932594,1746431464764,-402.72,0.00038082,14]
[359932595,1746431464775,-533.19,0.00038082,14]
[359932596,1746431464784,-400.0,0.00038082,14]
[359932597,1746431464793,-657.78,0.00038082,14]
[359932598,1746431464803,-3148.33,0.00038082,14]
[359932599,1746431465020,-400.0,0.00038082,14]
[359932600,1746431465031,-400.0,0.00038082,14]
[359932601,1746431465040,-531.94,0.00038082,14]
[359932602,1746431465051,-520.25,0.00038082,14]
[359932603,1746431465060,-1424.37,0.00038082,14]
[359932604,1746431465070,-400.0,0.00038082,14]
[359932605,1746431465079,-514.9,0.00038082,14]
[359932606,1746431465088,-2867.55,0.00038082,14]
[359932607,1746431465098,-471.11,0.00038082,14]
[359932608,1746431465107,-400.0,0.00038082,14]
[359932609,1746431465117,-727.17,0.00038082,14]
[359932610,1746431465127,-2092.45,0.00038082,14]
[359932611,1746431465137,-1835.12,0.00038082,14]
[359932612,1746431465147,-400.0,0.00038082,14]
[359932613,1746431465157,-3261.67,0.00038082,14]
[359932614,1746431465166,-1081.5,0.00038082,14]
[359932615,1746431465176,-6831.86,0.00038082,14]
[359932616,1746431465186,-400.0,0.00038082,14]
[359932617,1746431465195,-551.86,0.00038082,14]
[359932618,1746431465204,-423.41,0.00038082,14]
[359932619,1746431465214,-5354.805601,0.00038082,2]
[359932620,1746431465223,-400.0,0.00038082,14]
[359932621,1746431465233,-760.49,0.00038082,14]
[359932622,1746431465243,-5354.805598,0.00038082,2]
[359932623,1746431465252,-3084.1,0.00038082,14]
[359932624,1746431465262,-3375.42,0.00038082,14]
[359932625,1746431465271,-537.19,0.00038082,14]
[359932626,1746431465281,-400.0,0.00038082,14]
[359932627,1746431465291,-400.0,0.00038082,14]
[359932628,1746431465300,-582.03,0.00038082,14]
[359932629,1746431465309,-561.7,0.00038082,14]
[359932630,1746431465318,-2861.16,0.00038082,14]
[359932631,1746431465328,-960.8,0.00038082,14]
[359932632,1746431465338,-1245.99,0.00038082,14]
[359932633,1746431465348,-159.97505549,0.00038082,14]
[359932634,1746431465361,-917.15,0.00038082,14]
[359932635,1746431465370,-798.63,0.00038082,14]
[359932636,1746431465380,-2164.37,0.00038082,14]
[359932637,1746431465389,-1724.0,0.000381,7]
[359932638,1746431465399,-749.37037271,0.00038141,38]
[359932639,1746431465408,-5061.5,0.000382,30]
[359932640,1746431465418,-700.0,0.00038274,60]
[359932641,1746431465427,-1470.6641092,0.0003831,14]
[359932642,1746431465438,-449.91,0.00038356,14]
[359932643,1746431465447,-400.0,0.00038356,14]
[359932644,1746431465457,-400.0,0.00038356,14]
[359932645,1746431465467,-400.0,0.00038356,14]
[359932646,1746431465476,-400.0,0.00038356,14]
[359932647,1746431465486,-400.0,0.00038356,14]
[359932648,1746431465495,-620.35,0.00038356,14]
[359932649,1746431465505,-1058.09,0.00038356,14]
[359932650,1746431465524,-400.0,0.00038356,14]
[359932651,1746431465535,-413.91,0.00038356,14]
[359932652,1746431465545,-400.0,0.00038356,14]
[359932653,1746431465555,-203.75374945,0.00038356,14]
[359932654,1746431465565,-919.39,0.00038356,14]
[359932655,1746431465575,-400.0,0.00038356,14]
[359932656,1746431465584,-430.77,0.00038356,14]
[359932657,1746431465594,-567.54,0.00038356,14]
[359932658,1746431465604,-1065.94,0.00038356,2]
[359932659,1746431465614,-400.0,0.00038356,14]
[359932660,1746431465624,-151.0,0.00038356,14]
[359932661,1746431465634,-311.093798,0.00038356,14]
[359932662,1746431465643,-311.093798,0.00038356,14]
[359932663,1746431465653,-1390.66,0.00038356,14]
[359932664,1746431465662,-227.38,0.00038356,14]
[359932665,1746431465673,-400.0,0.00038356,14]
[359932666,1746431465683,-418.95,0.00038356,14]
[359932667,1746431465692,-689.44,0.00038356,14]
[359932668,1746431465701,-400.0,0.00038356,14]
[359932669,1746431465711,-400.0,0.00038356,14]
[359932670,1746431465720,-403.91,0.00038356,14]
[359932671,1746431465730,-400.0,0.00038356,14]
[359932672,1746431465739,-2422.87,0.00038356,14]
[359932673,1746431465749,-593.8,0.00038356,14]
[359932674,1746431465759,-400.0,0.00038356,14]
[359932675,1746431465769,-400.0,0.00038356,14]
[359932676,1746431465778,-874.22,0.00038356,14]
[359932677,1746431465788,-394.97481207,0.00038356,14]
[359932678,1746431465797,-324.406642,0.00038356,14]
[359932679,1746431465807,-324.406642,0.00038356,14]
[359932680,1746431465817,-175.388768,0.00038356,14]
[359932681,1746431465827,-175.388768,0.00038356,14]
[359932682,1746431465836,-467.43,0.00038356,14]
[359932683,1746431465846,-478.31,0.00038356,14]
[359932684,1746431465856,-400.0,0.00038356,14]
[359932685,1746431465866,-446.44,0.00038356,14]
[359932686,1746431465877,-183.42611063,0.00038356,14]
[359932687,1746431465887,-444.04,0.00038356,14]
[359932688,1746431465897,-400.0,0.00038356,14]
[359932689,1746431465907,-518.59,0.00038356,14]
[359932690,1746431465916,-400.0,0.00038356,14]
[359932691,1746431465926,-1222.27,0.00038356,14]
[359932692,1746431465936,-400.0,0.00038356,14]
[359932693,1746431465946,-204.612992,0.00038356,14]
[359932694,1746431465957,-1484.31,0.00038356,14]
[359932695,1746431465966,-1181.94,0.00038356,14]
[359932696,1746431465976,-400.0,0.00038356,14]
[359932697,1746431465986,-400.0,0.00038356,14]
[359932698,1746431465996,-2007.85,0.00038356,14]
[359932699,1746431466005,-400.0,0.00038356,14]
[359932700,1746431466016,-524.96,0.00038356,14]
[359932701,1746431466026,-676.94,0.00038356,14]
[359932702,1746431466036,-594.21,0.00038356,14]
[359932703,1746431466045,-5636.69,0.00038356,14]
[359932704,1746431466054,-400.0,0.00038356,14]
[359932705,1746431466063,-577.87,0.00038356,14]
[359932706,1746431466073,-2214.19,0.00038356,14]
[359932707,1746431466082,-439.27,0.00038356,14]
[359932708,1746431466092,-400.0,0.00038356,14]
[359932709,1746431466102,-601.23,0.00038356,14]
[359932710,1746431466112,-459.36097788,0.00038356,14]
[359932711,1746431466121,-400.0,0.00038356,14]
[359932712,1746431466131,-322.17,0.00038356,14]
[359932713,1746431466145,-402.72,0.00038356,14]
[359932714,1746431466155,-168.214865,0.00038356,14]
[359932715,1746431466165,-168.214867,0.00038356,14]
[359932716,1746431466174,-151.0,0.00038356,14]
[359932717,1746431466183,-533.19,0.00038356,14]
[359932718,1746431466193,-400.0,0.00038356,14]
[359932719,1746431466202,-657.78,0.00038356,14]
[359932720,1746431466212,-3148.33,0.00038356,14]
[359932721,1746431466221,-400.0,0.00038356,14]
[359932722,1746431466230,-708.598573,0.00038356,14]
[359932723,1746431466240,-400.0,0.00038356,14]
[359932724,1746431466249,-708.598582,0.00038356,14]
[359932725,1746431466259,-520.25,0.00038356,14]
[359932726,1746431466269,-1424.37,0.00038356,14]
[359932727,1746431466279,-400.0,0.00038356,14]
[359932728,1746431466288,-514.9,0.00038356,14]
[359932729,1746431466298,-2867.55,0.00038356,14]
[359932730,1746431466307,-471.11,0.00038356,14]
[359932731,1746431466316,-400.0,0.00038356,14]
[359932732,1746431466326,-727.17,0.00038356,14]
[359932733,1746431466335,-2092.45,0.00038356,14]
[359932734,1746431466345,-151.0,0.00038356,14]
[359932735,1746431466356,-1835.12,0.00038356,14]
[359932736,1746431466367,-400.0,0.00038356,14]
[359932737,1746431466378,-3261.67,0.00038356,14]
[359932738,1746431466522,-1081.5,0.00038356,14]
[359932739,1746431466532,-6831.86,0.00038356,14]
[359932740,1746431466542,-400.0,0.00038356,14]
[359932741,1746431466553,-551.86,0.00038356,14]
[359932742,1746431466563,-423.41,0.00038356,14]
[359932743,1746431466572,-999.0,0.00038356,120]
[359932744,1746431466582,-400.0,0.00038356,14]
[359932745,1746431466591,-760.49,0.00038356,14]
[359932746,1746431466601,-3084.1,0.00038356,14]
[359932747,1746431466611,-3375.42,0.00038356,14]
[359932748,1746431466620,-537.19,0.00038356,14]
[359932749,1746431466630,-400.0,0.00038356,14]
[359932750,1746431466639,-400.0,0.00038356,14]
[359932751,1746431466649,-582.03,0.00038356,14]
[359932752,1746431466658,-561.7,0.00038356,14]
[359932753,1746431466667,-2861.16,0.00038356,14]
[359932754,1746431466677,-151.0,0.00038356,14]
[359932755,1746431466686,-960.8,0.00038356,14]
[359932756,1746431466696,-1245.99,0.00038356,14]
[359932757,1746431466706,-917.15,0.00038356,14]
[359932758,1746431466716,-798.63,0.00038356,14]
[359932759,1746431466725,-2164.37,0.00038356,14]
[359932760,1746431466735,-151.0,0.00038356,14]
[359932761,1746431466744,-151.0,0.00038356,14]
[359932762,1746431466753,-151.0,0.00038356,14]
[359932763,1746431466762,-151.0,0.00038356,14]
[359932764,1746431466772,-151.0,0.00038356,14]
[359932765,1746431466781,-151.0,0.00038356,14]
[359932766,1746431466791,-151.0,0.00038356,14]
[359932767,1746431466800,-151.0,0.00038356,14]
[359932768,1746431466810,-151.0,0.00038356,14]
[359932769,1746431466819,-151.0,0.00038356,14]
[359932770,1746431466828,-151.0,0.00038356,14]
[359932771,1746431466838,-151.0,0.00038356,14]
[359932772,1746431466847,-151.0,0.00038356,14]
[359932773,1746431466856,-151.0,0.00038356,14]
[359932774,1746431466866,-151.0,0.00038356,14]
[359932775,1746431466875,-151.0,0.00038356,14]
[359932776,1746431466885,-151.0,0.00038356,14]
[359932777,1746431466895,-160.624323,0.00038356,14]
[359932778,1746431466904,-200.0,0.00038356,5]
[359932779,1746431466914,-2000.0,0.00038356,4]
[359932780,1746431466923,-5201.0,0.000384,3]
[359932781,1746431466933,-5201.0,0.000384,3]
[359932782,1746431466943,-5201.0,0.000384,3]
[359932783,1746431466952,-5201.0,0.000384,3]
[359932784,1746431466961,-5201.0,0.000384,3]
[359932785,1746431466971,-5201.0,0.000384,3]
[359932786,1746431466980,-153.56,0.000384,31]
[359932787,1746431466989,-153.56,0.000384,31]
[359932788,1746431466999,-153.56,0.000384,31]
[359932789,1746431467009,-153.56,0.000384,31]
[359932790,1746431467019,-153.56,0.000384,31]
[359932791,1746431467028,-153.56,0.000384,31]
[359932792,1746431467038,-153.56,0.000384,31]
[359932793,1746431467048,-153.56,0.000384,31]
[359932794,1746431467058,-153.56,0.000384,31]
[359932795,1746431467067,-153.56,0.000384,31]
[359932796,1746431467076,-151.0,0.000384,14]
[359932797,1746431467086,-819.404056,0.000384,14]
[359932798,1746431467095,-819.40404697,0.000384,14]
[359932799,1746431467104,-253.131864,0.000384,14]
[359932800,1746431467113,-253.131856,0.000384,14]
[359932801,1746431467123,-1991.1113341,0.00038442,4]
[359932802,1746431467133,-5000.0,0.00038465,2]
[359932803,1746431467142,-400.0,0.000385,30]
[359932804,1746431467151,-545.0,0.00038561,2]
[359932805,1746431467160,-708.0,0.00038561,2]
[359932806,1746431467170,-2265.056,0.00038561,2]
[359932807,1746431467179,-150.401,0.00038561,2]
[359932808,1746431467189,-489.251,0.00038561,2]
[359932809,1746431467199,-150.0,0.00038561,2]
[359932810,1746431467207,-842.5,0.00038582,30]
[359932811,1746431467217,-449.91,0.0003863,14]
[359932812,1746431467226,-400.0,0.0003863,14]
[359932813,1746431467236,-400.0,0.0003863,14]
[359932814,1746431467245,-400.0,0.0003863,14]
[359932815,1746431467254,-400.0,0.0003863,14]
[359932816,1746431467263,-400.0,0.0003863,14]
[359932817,1746431467273,-198.089713,0.0003863,2]
[359932818,1746431467282,-151.0,0.0003863,14]
[359932819,1746431467292,-198.089713,0.0003863,2]
[359932820,1746431467302,-271.153695,0.0003863,14]
[359932821,1746431467311,-620.35,0.0003863,14]
[359932822,1746431467321,-1058.09,0.0003863,14]
[359932823,1746431467330,-400.0,0.0003863,14]
[359932824,1746431467341,-413.91,0.0003863,14]
[359932825,1746431467351,-224.275852,0.0003863,14]
[359932826,1746431467363,-224.275852,0.0003863,14]
[359932827,1746431467372,-400.0,0.0003863,14]
[359932828,1746431467381,-919.39,0.0003863,14]
[359932829,1746431467390,-400.0,0.0003863,14]
[359932830,1746431467401,-430.77,0.0003863,14]
[359932831,1746431467410,-567.54,0.0003863,14]
[359932832,1746431467419,-1065.94,0.0003863,2]
[359932833,1746431467428,-400.0,0.0003863,14]
[359932834,1746431467438,-151.0,0.0003863,14]
[359932835,1746431467447,-311.093798,0.0003863,14]
[359932836,1746431467457,-311.093798,0.0003863,14]
[359932837,1746431467466,-1390.66,0.0003863,14]
[359932838,1746431467475,-400.0,0.0003863,14]
[359932839,1746431467484,-418.95,0.0003863,14]
[359932840,1746431467494,-689.44,0.0003863,14]
[359932841,1746431467502,-400.0,0.0003863,14]
[359932842,1746431467512,-400.0,0.0003863,14]
[359932843,1746431467521,-403.91,0.0003863,14]
[359932844,1746431467531,-400.0,0.0003863,14]
[359932845,1746431467541,-2422.87,0.0003863,14]
[359932846,1746431467550,-593.8,0.0003863,14]
[359932847,1746431467560,-400.0,0.0003863,14]
[359932848,1746431467569,-400.0,0.0003863,14]
[359932849,1746431467578,-874.22,0.0003863,14]
[359932850,1746431467588,-324.406642,0.0003863,14]
[359932851,1746431467597,-324.406642,0.0003863,14]
[359932852,1746431467607,-175.388768,0.0003863,14]
[359932853,1746431467616,-175.388768,0.0003863,14]
[359932854,1746431467625,-467.43,0.0003863,14]
[359932855,1746431467634,-151.0,0.0003863,14]
[359932856,1746431467643,-1000.0,0.0003863,28]
[359932857,1746431467652,-1000.0,0.0003863,28]
[359932858,1746431467661,-1000.0,0.0003863,28]
[359932859,1746431467670,-1000.0,0.0003863,28]
[359932860,1746431467679,-1000.0,0.0003863,28]
[359932861,1746431467689,-1000.0,0.0003863,28]
[359932862,1746431467699,-1000.0,0.0003863,28]
[359932863,1746431467708,-1000.0,0.0003863,28]
[359932864,1746431467717,-1000.0,0.0003863,28]
[359932865,1746431467727,-1000.0,0.0003863,28]
[359932866,1746431467736,-1000.0,0.0003863,28]
[359932867,1746431467746,-1000.0,0.0003863,28]
[359932868,1746431467756,-1000.0,0.0003863,28]
[359932869,1746431467765,-1000.0,0.0003863,28]
[359932870,1746431467774,-1000.0,0.0003863,28]
[359932871,1746431467784,-1000.0,0.0003863,28]
[359932872,1746431467793,-1000.0,0.0003863,28]
[359932873,1746431467802,-1000.0,0.0003863,28]
[359932874,1746431467812,-478.31,0.0003863,14]
[359932875,1746431467821,-1000.0,0.0003863,28]
[359932876,1746431467831,-1000.0,0.0003863,28]
[359932877,1746431467840,-1000.0,0.0003863,28]
[359932878,1746431467850,-1000.0,0.0003863,28]
[359932879,1746431467859,-1000.0,0.0003863,28]
[359932880,1746431467869,-1000.0,0.0003863,28]
[359932881,1746431467878,-1000.0,0.0003863,28]
[359932882,1746431467888,-1000.0,0.0003863,28]
[359932883,1746431467897,-1000.0,0.0003863,28]
[359932884,1746431467906,-1000.0,0.0003863,28]
[359932885,1746431467916,-1000.0,0.0003863,28]
[359932886,1746431467927,-1000.0,0.0003863,28]
[359932887,1746431467936,-1000.0,0.0003863,28]
[359932888,1746431467946,-1000.0,0.0003863,28]
[359932889,1746431467956,-1000.0,0.0003863,28]
[359932890,1746431467966,-1000.0,0.0003863,28]
[359932891,1746431467976,-1000.0,0.0003863,28]
[359932892,1746431467986,-1000.0,0.0003863,28]
[359932893,1746431467995,-1000.0,0.0003863,28]
[359932894,1746431468005,-1000.0,0.0003863,28]
[359932895,1746431468015,-1000.0,0.0003863,28]
[359932896,1746431468025,-1000.0,0.0003863,28]
[359932897,1746431468034,-1000.0,0.0003863,28]
[359932898,1746431468044,-1000.0,0.0003863,28]
[359932899,1746431468054,-1000.0,0.0003863,28]
[359932900,1746431468065,-1000.0,0.0003863,28]
[359932901,1746431468074,-1000.0,0.0003863,28]
[359932902,1746431468084,-1000.0,0.0003863,28]
[359932903,1746431468093,-1000.0,0.0003863,28]
[359932904,1746431468103,-1000.0,0.0003863,28]
[359932905,1746431468112,-1000.0,0.0003863,28]
[359932906,1746431468121,-1000.0,0.0003863,28]
[359932907,1746431468131,-1000.0,0.0003863,28]
[359932908,1746431468141,-1000.0,0.0003863,28]
[359932909,1746431468150,-688.436082,0.0003863,28]
[359932910,1746431468160,-163.5,0.0003863,14]
[359932911,1746431468170,-444.04,0.0003863,14]
[359932912,1746431468179,-292.99143153,0.0003863,14]
[359932913,1746431468188,-518.59,0.0003863,14]
[359932914,1746431468197,-489.18,0.0003863,14]
[359932915,1746431468207,-1222.27,0.0003863,14]
[359932916,1746431468216,-400.0,0.0003863,14]
[359932917,1746431468225,-1484.31,0.0003863,14]
[359932918,1746431468235,-1181.94,0.0003863,14]
[359932919,1746431468244,-501.06,0.0003863,14]
[359932920,1746431468254,-400.0,0.0003863,14]
[359932921,1746431468264,-2007.85,0.0003863,14]
[359932922,1746431468274,-400.0,0.0003863,14]
[359932923,1746431468283,-524.96,0.0003863,14]
[359932924,1746431468293,-676.94,0.0003863,14]
[359932925,1746431468302,-594.21,0.0003863,14]
[359932926,1746431468312,-5636.69,0.0003863,14]
[359932927,1746431468321,-400.0,0.0003863,14]
[359932928,1746431468331,-577.87,0.0003863,14]
[359932929,1746431468341,-2214.19,0.0003863,14]
[359932930,1746431468350,-439.27,0.0003863,14]
[359932931,1746431468364,-400.0,0.0003863,14]
[359932932,1746431468374,-601.23,0.0003863,14]
[359932933,1746431468383,-400.0,0.0003863,14]
[359932934,1746431468393,-402.72,0.0003863,14]
[359932935,1746431468403,-533.19,0.0003863,14]
[359932936,1746431468413,-400.0,0.0003863,14]
[359932937,1746431468423,-657.78,0.0003863,14]
[359932938,1746431468433,-3148.33,0.0003863,14]
[359932939,1746431468442,-400.0,0.0003863,14]
[359932940,1746431468452,-293.02,0.0003863,14]
[359932941,1746431468462,-520.25,0.0003863,14]
[359932942,1746431468472,-1424.37,0.0003863,14]
[359932943,1746431468482,-400.0,0.0003863,14]
[359932944,1746431468492,-514.9,0.0003863,14]
[359932945,1746431468501,-2867.55,0.0003863,14]
[359932946,1746431468511,-471.11,0.0003863,14]
[359932947,1746431468520,-400.0,0.0003863,14]
[359932948,1746431468530,-727.17,0.0003863,14]
[359932949,1746431468540,-2092.45,0.0003863,14]
[359932950,1746431468550,-1835.12,0.0003863,14]
[359932951,1746431468560,-400.0,0.0003863,14]
[359932952,1746431468570,-3261.67,0.0003863,14]
[359932953,1746431468579,-1081.5,0.0003863,14]
[359932954,1746431468589,-6831.86,0.0003863,14]
[359932955,1746431468599,-400.0,0.0003863,14]
[359932956,1746431468608,-551.86,0.0003863,14]
[359932957,1746431468618,-423.41,0.0003863,14]
[359932958,1746431468628,-400.0,0.0003863,14]
[359932959,1746431468637,-760.49,0.0003863,14]
[359932960,1746431468646,-3084.1,0.0003863,14]
[359932961,1746431468656,-3375.42,0.0003863,14]
[359932962,1746431468666,-537.19,0.0003863,14]
[359932963,1746431468675,-400.0,0.0003863,14]
[359932964,1746431468685,-304.97065454,0.0003863,14]
[359932965,1746431468694,-582.03,0.0003863,14]
[359932966,1746431468704,-561.7,0.0003863,14]